Cogmind - Beta 17.1 @@@ ROGUE MODE // 2026.09.02 @ 17:23:02 Player: TheSkyeDoctor Result: Destroyed by X-77 Beamer with Gatling Laser Performance ------------- Evolutions (5) 2500 Regions Visited (16) 3200 Robots Destroyed (198) 990 Value Destroyed (7919) 7919 Prototype IDs (40) 800 Alien Tech Used (0) 0 Bonus (2795) 2795 TOTAL SCORE: 18204 Bonus ------- High Alert Combat Kills 1077 Follower Combat Kills 318 Aligned with FarCom 300 Met Data Miner 300 Met Imprinter 300 MAIN.C Attacked Proxy Base 500 Cogmind --------- Core Integrity 0/1000 Matter 240/300 Energy 95/100 System Corruption 37% Temperature Warm (176) Movement Core (500) Ox9 Location -5/Factory Parts ------- > --- POWER (1) -------- (None) > --- PROPULSION (4) --- (None) > --- UTILITY (8) ------ Improved Coolant Injector Advanced Signal Interpreter Advanced Terrain Scan Processor Layered Heavy Armor Plating > --- WEAPON (4) ------- KE Penetrator Heavy Flail > --- INVENTORY (5) ---- Antimatter Reactor Improved EM Pulse Cannon Tesla Bomb Launcher Rocket Launcher Improved Remote Datajack Peak State ------------ > --- POWER ------------ Fission Core > --- PROPULSION ------- Medium Treads Improved Medium Treads Armored Medium Treads > --- UTILITY ---------- High-capacity Storage Unit Improved Sensor Array Advanced Signal Interpreter Advanced Terrain Scan Processor Advanced Targeting Computer Advanced Target Analyzer Makeshift Medium Armor Plating Improved Hardlight Generator > --- WEAPON ----------- Mass Driver Mass Driver Heavy Gauss Cannon Great Maul > --- INVENTORY -------- Light Nuclear Core Angular Momentum Engine High-capacity Matter Pod Compact Matter Pod Advanced Targeting Computer Hardened Medium Armor Plating Advanced Hacking Suite Advanced System Restoration Module High-powered Tractor Beam Hacking Drone Bay Improved EM Pulse Cannon Improved EM Pulse Cannon Heavy Gauss Cannon Heavy Gauss Cannon Rocket Launcher Heavy Rocket Launcher Improved Remote Datajack RU-N14's Throwing Claymores RU-N14's Throwing Claymores Power Sword [Rating: 84] Favorites ----------- Power Enhanced Nuclear Core Engine Improved Ion Engine Power Core Enhanced Nuclear Core Reactor Antimatter Reactor Propulsion Armored Treads Treads Armored Treads Wheel Wheel Utility High-capacity Storage Unit Device Improved Sensor Array Storage High-capacity Storage Unit Processor Advanced Signal Interpreter Hackware Hacking Suite Protection Layered Medium Armor Plating Weapon Great Maul Energy Gun Plasma Rifle Energy Cannon Cooled Plasma Cannon Ballistic Gun Assault Rifle Ballistic Cannon AWS/Autocannon Launcher Grenade Launcher Special Weapon RU-N14's Throwing Claymores Impact Weapon Great Maul Slashing Weapon Power Sword Special Melee Weapon Datajack Build | -11 -10 -10 -10 -9 -8 -7 -7 -7 -7 -6 -6 -6 -6 -6 -5 -5 ------- Run | Yrd Mat Min Exi Min Mat Fac Low Low Dat Pro Fac Low Low Zio Pro Fac Slots Evolved 10 | . . . . . 4 2 . . . . 2 . . . . 2 Power . | . . . . . . . . . . . . . . . . . Propulsion 2 | . . . . . 2 . . . . . . . . . . . Utility 6 | . . . . . . 2 . . . . 2 . . . . 2 Weapon 2 | . . . . . 2 . . . . . . . . . . . Parts Attached 107 | 8 2 4 . 1 8 9 1 1 . . 11 3 . 5 4 50 Power 11 | 2 . 1 . . . 3 . . . . 1 . . 1 . 3 Engine 6 | 2 . 1 . . . 2 . . . . . . . . . 1 Core 4 | . . . . . . 1 . . . . 1 . . 1 . 1 Reactor 1 | . . . . . . . . . . . . . . . . 1 Propulsion 24 | 2 1 . . . 5 3 . . . . 1 . . 2 1 9 Treads 15 | 2 . . . . 3 3 . . . . 1 . . 2 1 3 Leg . | . . . . . . . . . . . . . . . . . Wheel 9 | . 1 . . . 2 . . . . . . . . . . 6 Hover . | . . . . . . . . . . . . . . . . . Flight . | . . . . . . . . . . . . . . . . . Utility 38 | 2 1 1 . . 1 3 1 . . . 5 3 . 1 1 19 Device 17 | 1 . . . . . 1 . . . . 1 1 . . . 13 Storage 2 | 1 1 . . . . . . . . . . . . . . . Processor 9 | . . . . . . 1 . . . . 2 2 . 1 . 3 Hackware 1 | . . . . . . 1 . . . . . . . . . . Protection 9 | . . 1 . . 1 . 1 . . . 2 . . . 1 3 Artifact . | . . . . . . . . . . . . . . . . . Weapon 34 | 2 . 2 . 1 2 . . 1 . . 4 . . 1 2 19 Energy Gun 3 | 1 . . . . . . . . . . . . . . . 2 Energy Cannon 5 | . . . . . 1 . . . . . 2 . . . . 2 Ballistic Gun 4 | 1 . 1 . . . . . . . . . . . . . 2 Ballistic Cannon 12 | . . . . . 1 . . . . . 1 . . 1 1 8 Launcher 5 | . . 1 . 1 . . . 1 . . . . . . . 2 Special Weapon 1 | . . . . . . . . . . . . . . . . 1 Impact Weapon 2 | . . . . . . . . . . . 1 . . . . 1 Slashing Weapon 1 | . . . . . . . . . . . . . . . . 1 Piercing Weapon . | . . . . . . . . . . . . . . . . . Special Melee Weapon 1 | . . . . . . . . . . . . . . . 1 . Unidentified Prototypes 4 | . . . . . . 1 . . . . . . . . . 3 Corrupted Parts 1 | . . . . . . . . . . . . . . . . 1 System Corruption 5 | . . . . . . . . . . . . . . . . 5 Parts Lost 62 | . 1 2 . . . 4 1 . . . 4 . . . . 50 Power 4 | . . . . . . . . . . . 1 . . . . 3 Propulsion 18 | . 1 . . . . 3 . . . . 1 . . . . 13 Utility 22 | . . 1 . . . . . . . . 2 . . . . 19 Weapon 18 | . . 1 . . . 1 1 . . . . . . . . 15 Highest Loss Streak 12 | . 1 1 . . . 4 1 . . . 3 . . . . 12 To Critical Strikes 1 | . . . . . . 1 . . . . . . . . . . Average Backups 15 | 2 5 9 11 13 15 14 14 15 15 15 14 15 16 19 20 18 Power 1 | . 1 1 1 1 1 1 1 1 1 1 . 1 2 2 2 2 Propulsion 1 | . 1 1 2 2 2 2 . 1 1 1 . 1 3 1 1 . Utility 5 | . 1 3 3 4 4 4 7 7 7 7 6 4 5 6 7 6 Weapon 6 | . 1 2 4 5 6 5 5 5 5 5 6 6 5 8 9 9 Tool/Special . | . . . . . . . . . . . . . . . . . Unused Backups 23 | . . 1 . . 1 3 1 1 . . 1 4 1 . 2 8 Power 3 | . . 1 . . . 1 . . . . . . . . . 1 Propulsion 3 | . . . . . 1 1 . . . . . 1 . . . . Utility 6 | . . . . . . . 1 1 . . . 1 . . . 3 Weapon 10 | . . . . . . 1 . . . . 1 2 1 . 2 3 Tool/Special 1 | . . . . . . . . . . . . . . . . 1 Average Slot Usage (%) 91 | . 99 99 100 100 79 83 80 83 84 84 92 99 99 99 100 86 Engine 2 | . 14 14 14 14 9 3 . . . . . . . . . . Core 4 | . . . . . . 3 7 7 7 7 6 6 6 6 6 4 Treads 20 | . 21 14 14 14 17 19 30 30 30 30 25 26 26 25 26 7 Wheel 4 | . 6 14 14 14 17 10 . . . . . . . . . 5 Device 4 | . 14 3 . . . 5 . . . . 5 4 . . . 13 Storage 7 | . 14 14 14 14 9 7 7 7 7 7 6 6 6 6 6 5 Processor 13 | . . . . . . 1 7 7 7 7 12 21 26 26 26 20 Hackware 2 | . . . . . . 7 7 7 7 7 5 . . . . . Protection 6 | . . 10 14 14 9 7 7 7 7 7 6 6 6 6 6 3 Energy Cannon 4 | . . . . . 6 5 . . . . 6 13 12 6 6 2 Ballistic Gun 2 | . 14 24 14 14 2 . . . . . . . . . . . Ballistic Cannon 7 | . . . . . 7 7 7 7 7 7 6 6 6 12 13 10 Launcher 1 | . . 3 14 14 1 1 4 6 7 7 . . . . . . Impact Weapon 2 | . . . . . . . . . . . 5 6 6 6 4 3 Peak Build Rating 84 | 7 8 9 16 16 51 64 64 67 66 66 76 63 63 68 71 84 Average Rating 58 | 5 7 8 13 16 44 59 63 66 66 66 64 61 62 65 69 72 On Entrance 44 | . 7 8 9 16 16 51 64 63 66 66 66 55 63 61 68 69 Avg Prop Armor Cover (%) 9 | . 11 9 9 9 10 10 . . . . . . . . . 10 Naked Turns . | . . . . . . . . . . . . . . . . . Heaviest Build 121 | 15 50 55 55 55 116 120 116 120 120 120 121 85 84 84 88 113 Greatest Support 98 | 40 40 10 10 10 22 91 91 91 91 91 91 88 88 98 98 98 Greatest Overweight (x) 26 | . 4 5 5 5 5 5 1 1 1 1 1 . . . . 26 Average Overweight (x) 1 | . 1 4 5 5 4 4 1 1 1 1 . . . . . 2 Largest Inventory Capacity 20 | 8 20 20 20 20 20 20 20 20 20 20 20 20 20 20 20 20 Average Capacity 19 | 7 10 20 20 20 20 20 20 20 20 20 20 20 20 20 20 19 Most Carried 20 | 5 7 13 19 20 20 20 20 20 18 18 19 20 20 20 20 20 Average Carried 17 | 2 5 9 15 19 19 18 18 18 18 18 17 18 19 19 20 18 Final Capacity 20 | 8 20 20 20 20 20 20 20 20 20 20 20 20 20 20 20 5 Final Carried 20 | 5 7 10 19 20 20 18 20 18 18 18 18 20 18 20 20 5 Class Distribution -------------------- 29% | Gunner 23% | Tank 17% | Mutant 11% | Scavenger-Gunner 8% | Skirmisher 5% | Scavenger-Skirmisher Dominant Class ---------------- Mutant | -10/Materials Mutant | -10/Mines Mutant | -10/Exiles Mutant | -9/Mines Scavenger-Skirmisher | -8/Materials Tank | -7/Factory Tank | -7/Lower Caves Tank | -7/Lower Caves Tank | -7/Data Miner Tank | -6/Proximity Caves Skirmisher | -6/Factory Gunner | -6/Lower Caves Gunner | -6/Lower Caves Gunner | -6/Zion Scavenger-Gunner | -5/Proximity Caves Gunner | -5/Factory Resources | -11 -10 -10 -10 -9 -8 -7 -7 -7 -7 -6 -6 -6 -6 -6 -5 -5 ----------- Run | Yrd Mat Min Exi Min Mat Fac Low Low Dat Pro Fac Low Low Zio Pro Fac Matter Collected 4548 | 292 59 151 5 . 248 185 60 312 . 39 246 69 81 87 199 2515 Remotely 939 | . . . . . . 185 . . . . . 69 . . . 685 Salvage Created 6188 | 140 271 224 . . 471 1141 318 99 . 145 366 49 169 . 122 2673 Parts 330 | 7 20 12 . . 24 76 16 16 . . 19 4 11 . 8 117 Haulers Intercepted 3 | . 1 . . . . 1 . . . . . . . . . 1 Recyclers Shooed 2 | . . . . . . . . . . . . . . . . 2 Parts Field Recycled . | . . . . . . . . . . . . . . . . . Retrieved Matter . | . . . . . . . . . . . . . . . . . Parts Self-Destructed 33 | . . . . . . . 5 2 . . . 4 6 . 16 . Prevented 48 | . . . . . . . 1 . . . . . 1 . 46 . Parts Restored . | . . . . . . . . . . . . . . . . . Kills | -11 -10 -10 -10 -9 -8 -7 -7 -7 -7 -6 -6 -6 -6 -6 -5 -5 ------- Run | Yrd Mat Min Exi Min Mat Fac Low Low Dat Pro Fac Low Low Zio Pro Fac Combat Hostiles Destroyed 155 | . 6 5 . . 12 31 11 7 . 9 7 2 5 . 3 57 Melee 9 | . . . . . . . . . . . 1 . . . . 8 Guns 12 | . 4 3 . . . . . . . . . . . . . 5 Cannons 109 | . . . . . 11 28 11 4 . 7 4 2 4 . 3 35 AOE 16 | . 2 2 . . . 3 . 3 . 2 . . . . . 4 Classes Destroyed 20 | 2 5 2 . . 3 4 2 1 . 1 . . . . . . Worker 12 | . . . . . 1 6 . . . . . . . . . 5 Builder 8 | . . . . . 1 2 . . . . . . . . . 5 Tunneler 2 | 2 . . . . . . . . . . . . . . . . Hauler 3 | . 1 . . . . 1 . . . . . . . . . 1 Recycler 6 | 1 . 1 . . . 2 . . . . . . . . . 2 Mechanic 2 | . . . . . . 1 . . . . . . . . . 1 Operator 2 | . 1 . . . . . . . . . 1 . . . . . Drone 2 | . . . . . . . . . . 2 . . . . . . Watcher 9 | . 1 . . . 3 1 . . . . 2 . . . . 2 Swarmer 30 | . 3 . . . 2 7 4 . . . . 2 3 . . 9 Grunt 58 | . 3 1 . . 8 10 2 3 . 5 2 . . . 1 23 Brawler 5 | . . . . . . . . . . 1 . . . . . 4 Duelist 3 | . . . . . . . 1 . . . . . . . 1 1 Protector 3 | . . . . . . 1 . . . . . . . . 1 1 Sentry 12 | . . 2 . . . 1 . 1 . . 2 . 1 . . 5 Specialist 5 | . . . . . . 5 . . . . . . . . . . Hunter 9 | . . . . . 2 4 . 1 . . . . . . . 2 Programmer 20 | . . . . . . 3 . . . 1 3 . . . 1 12 Master Thief 3 | . . . . . . . . 2 . . . . 1 . . . Assembled 2 | . . 2 . . . . . . . . . . . . . . Thug 1 | . . . . . . . 1 . . . . . . . . . Savage 3 | . . . . . . . 3 . . . . . . . . . Best Kill Streak 23 | 3 4 2 . . 7 23 4 3 . 7 2 2 3 . 3 8 Combat Bots Only 13 | . 3 2 . . 4 13 4 3 . 7 2 2 3 . 3 7 Max Kills in Single Turn 3 | 1 1 1 . . 2 3 1 1 . 1 1 1 1 . 2 2 Gunslinging . | . . . . . . . . . . . . . . . . . Exploded 2 | . 1 1 . . . 1 . 1 . 1 . . . . . 2 Melee 1 | . . . . . . . . . . . 1 . . . . 1 Uniques/NPCs Destroyed . | . . . . . . . . . . . . . . . . . Combat | -11 -10 -10 -10 -9 -8 -7 -7 -7 -7 -6 -6 -6 -6 -6 -5 -5 -------- Run | Yrd Mat Min Exi Min Mat Fac Low Low Dat Pro Fac Low Low Zio Pro Fac Hostile Shots Fired 984 | . 21 22 . . 22 158 15 44 . 13 100 12 33 . 15 529 Missed 291 | . 6 6 . . 3 65 2 21 . 7 31 2 14 . 4 130 Hits 693 | . 15 16 . . 19 93 13 23 . 6 69 10 19 . 11 399 Melee 16 | . . . . . . . . 2 . . . . 6 . . 8 Projectile 677 | . 15 16 . . 19 93 13 21 . 6 69 10 13 . 11 391 AOE 1 | . . . . . . . . . . . . . . . . 1 Critical Strikes 27 | . . 1 . . 1 3 . 1 . . 4 . . . . 17 Part Disruptions 1 | . . . . . . . . . . . . . . . . 1 Damage Taken 11710 | 32 312 243 . . 240 1334 203 297 . 211 1031 153 216 . 301 7137 Core 1407 | . 49 28 . . 24 181 . 29 . 13 15 45 17 . . 1006 Absorbed by Shields 633 | . . . . . . . . . . . . . . . . 633 Regen/Repaired (Parts) 72 | . . . . . . . . . . . . . . . 72 . Core Remaining (%) 84 | 100 . . . 69 95 . . . . 68 . . . . 90 . Volleys Fired 257 | 4 24 15 . . 5 36 4 8 . 9 7 4 14 . 9 118 Largest 4 | 2 2 2 . . 1 1 1 1 . 1 3 3 3 . 3 4 Hottest 242 | 60 60 60 . . 56 56 30 39 . 39 154 154 154 . 130 242 Shots Fired 757 | 8 48 29 . . 37 109 25 30 . 24 27 12 40 . 28 340 Gun 168 | 8 48 27 . . 1 . . . . . . . . . . 84 Cannon 549 | . . . . . 36 99 21 22 . 15 27 12 40 . 28 249 Launcher 38 | . . 2 . . . 10 4 8 . 9 . . . . . 5 Special 2 | . . . . . . . . . . . . . . . . 2 Kinetic 519 | 4 24 26 . . 33 73 21 22 . 15 15 4 14 . 19 249 Thermal 114 | . . . . . . . . . . . 6 4 14 . 9 81 Explosive 40 | . . 2 . . . 10 4 8 . 9 . . . . . 7 Electromagnetic 84 | 4 24 1 . . 4 26 . . . . 6 4 12 . . 3 Robot Hit Streak 16 | 6 4 7 . . 5 9 15 14 . 6 11 3 4 . 7 16 Robot Miss Streak 9 | . 3 4 . . 3 3 1 5 . 2 3 3 4 . 9 7 Penetration Max 1 | . . . . . . . . . . . . . . . . 1 Secondary Targets 1 | . 1 . . . . . . . . . . . . . . . Max Gunslinging Chain 1 | . 1 . . . . . . . . . . . . . . . Autonomous 172 | . . . . . 32 73 21 22 . 15 9 . . . . . Shots Hit Robots 513 | 6 27 17 . . 24 77 18 17 . 16 25 4 19 . 29 234 Core Hits 306 | 2 14 10 . . 13 63 14 8 . 12 7 2 8 . 18 135 Critical Kills 8 | . . . . . . . . . . . 1 . 1 . . 6 Critical Parts Destroyed 7 | 1 . . . . . . . . . . 1 . . . . 5 Critical Strikes 63 | 1 . . . . 2 9 . . . 1 2 . 1 . 2 45 Burn 4 | . . . . . . . . . . . . . . . . 4 Meltdown 3 | . . . . . . . . . . . 1 . 1 . . 1 Destroy 1 | 1 . . . . . . . . . . . . . . . . Blast 41 | . . . . . 2 9 . . . 1 . . . . 2 27 Smash 11 | . . . . . . . . . . . 1 . . . . 10 Sever 3 | . . . . . . . . . . . . . . . . 3 Melee Attacks 133 | . . . . . . . . . . . 30 . 3 2 11 87 Impact 104 | . . . . . . . . . . . 30 . 3 2 . 69 Slashing 18 | . . . . . . . . . . . . . . . . 18 Piercing . | . . . . . . . . . . . . . . . . . Sneak Attacks 16 | . . . . . . . . . . . . . . . 11 5 Combat Hostiles . | . . . . . . . . . . . . . . . . . Follow-up Attacks . | . . . . . . . . . . . . . . . . . Damage Inflicted 26875 | 124 565 308 . . 1641 6555 1609 1825 . 1779 1304 145 636 . 560 9824 Guns 1891 | 75 363 215 . . 15 . . . . . . . . . . 1223 Cannons 18870 | . . . . . 1626 5190 1434 1298 . 1144 886 145 636 . 560 5951 Explosions 4140 | 49 202 93 . . . 1365 175 527 . 635 . . . . . 1094 Melee 1925 | . . . . . . . . . . . 418 . . . . 1507 Ramming . | . . . . . . . . . . . . . . . . . Kinetic 18172 | 21 182 215 . . 1579 4835 1434 1298 . 1144 733 64 224 . 468 5975 Thermal 2034 | 49 202 . . . . . . . . . 100 30 256 . 92 1305 Explosive 3731 | . . 93 . . . 1365 175 527 . 635 . . . . . 936 Electromagnetic 964 | 54 181 . . . 62 355 . . . . 53 51 156 . . 52 Impact 1539 | . . . . . . . . . . . 418 . . . . 1121 Slashing 435 | . . . . . . . . . . . . . . . . 435 Piercing . | . . . . . . . . . . . . . . . . . Highest Corruption 37 | . . . . . . . . . . . 3 3 . . 1 37 Average Corruption 9 | . . . . . . . . . . . 2 2 . . 1 11 Corruption Purged 7 | . . . . . . . . . . . . 3 . . . 4 Corruption Blocked . | . . . . . . . . . . . . . . . . . Effects 109 | . . . . . . . . . . . 6 . . . 1 102 Message Errors 23 | . . . . . . . . . . . 1 . . . . 22 Matter Fused 26 | . . . . . . . . . . . 4 . . . . 22 Heat Flow Errors 13 | . . . . . . . . . . . 1 . . . . 12 Energy Discharges 10 | . . . . . . . . . . . . . . . . 10 Parts Rejected 2 | . . . . . . . . . . . . . . . . 2 Parts Fused 1 | . . . . . . . . . . . . . . . . 1 Data Loss (minor) 10 | . . . . . . . . . . . . . . . . 10 Data Loss (major) 5 | . . . . . . . . . . . . . . . . 5 Misfires 6 | . . . . . . . . . . . . . . . 1 5 Misdirections 1 | . . . . . . . . . . . . . . . . 1 Weapon Failures 12 | . . . . . . . . . . . . . . . . 12 Overload Shots . | . . . . . . . . . . . . . . . . . Overflow Damage 2267 | 35 41 5 . . 179 409 152 258 . 177 80 . 15 . . 916 Projectiles 1328 | . . . . . 179 374 152 236 . 167 13 . 15 . . 192 Explosions 397 | 35 41 5 . . . 35 . 22 . 10 . . . . . 249 Melee 542 | . . . . . . . . . . . 67 . . . . 475 Knockbacks 105 | . . . . . 5 21 2 3 . 4 3 1 6 . . 60 Impact 4 | . . . . . . . . . . . 1 . . . . 3 Kinetic 92 | . . . . . 4 19 2 3 . 4 2 1 6 . . 51 Secondary 9 | . . . . . 1 2 . . . . . . . . . 6 Self-Inflicted Damage 647 | 33 149 . . . . 36 . 116 . 102 . . . . . 211 Shots 14 | 1 2 . . . . 2 . 4 . 2 . . . . . 3 Rammed . | . . . . . . . . . . . . . . . . . Targets Rammed . | . . . . . . . . . . . . . . . . . Kicked . | . . . . . . . . . . . . . . . . . Crushed . | . . . . . . . . . . . . . . . . . Highest Temperature 566 | 12 60 21 . . 24 96 . 12 . 31 138 324 357 . 338 566 Average Temperature 107 | 12 22 9 . . 10 25 . 8 . 21 55 167 164 . 166 116 Received Heat Transfer 2152 | . 78 114 . . 81 177 9 36 . 54 180 . . . 63 1360 Effects 10 | . . . . . . . . . . . . . 4 . . 6 Shutdowns 2 | . . . . . . . . . . . . . . . . 2 Energy Bleed 2 | . . . . . . . . . . . . . 1 . . 1 Interference 5 | . . . . . . . . . . . . . 3 . . 2 Damage (minor) 1 | . . . . . . . . . . . . . . . . 1 Siege Activations . | . . . . . . . . . . . . . . . . . Martial Activations . | . . . . . . . . . . . . . . . . . Shielding Activations . | . . . . . . . . . . . . . . . . . Robots Disrupted 1 | . . . . . 1 . . . . . . . . . . . Combat Hostiles 1 | . . . . . 1 . . . . . . . . . . . Robots Corrupted 10 | . . . . . 1 1 . . . . 2 . . . . 6 Combat Hostiles 6 | . . . . . 1 . . . . . 2 . . . . 3 Parts Fried 16 | . 1 . . . 1 1 . . . . 2 . . . . 11 Impact Corruptions 21 | . . . . . 1 1 . . . . 6 . . . . 13 Robots Melted 4 | . . . . . . . . . . . 1 . 1 . . 2 Combat Hostiles 3 | . . . . . . . . . . . . . 1 . . 2 Parts Melted 11 | . 1 . . . . . . . . . 2 . 3 . . 5 Heat Transferred 3416 | 100 200 . . . . . . . . . 150 50 400 . 125 2391 Parts Sabotaged . | . . . . . . . . . . . . . . . . . Parts Stolen 4 | . . . . . . . . 1 . . . . 3 . . . Parts Stripped . | . . . . . . . . . . . . . . . . . Power Chain Reactions 4 | 1 2 . . . . . . . . . . . . . . 1 Alert | -11 -10 -10 -10 -9 -8 -7 -7 -7 -7 -6 -6 -6 -6 -6 -5 -5 ------- Run | Yrd Mat Min Exi Min Mat Fac Low Low Dat Pro Fac Low Low Zio Pro Fac Maximum Alert Level 4 | . . . . . 1 2 . . . . . . . . . 4 Low Security (%) 71 | 100 100 100 . 100 96 57 . . . . 100 . . . . 45 Level 1 4 | . . . . . 3 14 . . . . . . . . . 3 Level 2 5 | . . . . . . 27 . . . . . . . . . 4 Level 3 7 | . . . . . . . . . . . . . . . . 17 Level 4 11 | . . . . . . . . . . . . . . . . 28 Level 5 . | . . . . . . . . . . . . . . . . . High Security . | . . . . . . . . . . . . . . . . . Max Security . | . . . . . . . . . . . . . . . . . Peak Influence 1440 | 15 117 49 . . 212 647 . . . . 62 . . . . 1440 Initial 34 | . . 19 . . . 18 . . . . . . . . . 34 Average 285 | 1 64 5 . . 87 221 . . . . 13 . . . . 580 Influence Increases 5391 | 15 254 102 . . 358 926 190 120 . 170 326 65 120 . 207 2538 Destroy 0b10 Robot/C 2940 | . 120 60 . . 240 600 140 100 . 140 140 40 80 . 160 1120 Destroy 0b10 Robot/NC 255 | 15 15 5 . . 25 70 . . . 10 15 . . . 10 90 Destroy Leader 604 | . 24 10 . . 66 124 20 20 . 20 54 10 10 . . 246 Allied During Kill 48 | . . . . . 8 . . . . . . . . . 37 3 Successful Hack 77 | . 7 . . . 7 . . . . . 24 . . . . 39 Disable Machine 420 | . 30 . . . . 60 . . . . 45 . . . . 285 Anti-Garrison Action 200 | . . . . . . . . . . . . . . . . 200 Destroy Structure 532 | . 28 12 . . 12 42 . . . . 18 . . . . 420 Partial Spotted 15 | . . . . . . . . . . . . . . . . 15 Lose Combat Pursuer 300 | . 30 15 . . . 30 30 . . . 30 15 30 . . 120 Influence Decreases 4236 | 15 202 154 . . 316 395 621 262 . 170 326 65 120 . 152 1438 Entered New Map 319 | . . 33 . . . 24 213 28 . . . . . . . 21 Time Decay 3001 | 15 192 111 . . 284 331 398 234 . 170 324 65 120 . 132 625 Lost Part 564 | . 10 10 . . . 40 10 . . . 2 . . . . 492 Lost Ally 20 | . . . . . . . . . . . . . . . 20 . Purge Threat 332 | . . . . . 32 . . . . . . . . . . 300 Squads Dispatched 43 | . . . . . 2 10 . . . . 4 . . . . 27 Investigation 6 | . . . . . 1 2 . . . . . . . . . 3 Extermination 12 | . . . . . . 2 . . . . 4 . . . . 6 Reinforcement 12 | . . . . . 1 2 . . . . . . . . . 9 Assault 4 | . . . . . . 1 . . . . . . . . . 3 Garrison 9 | . . . . . . 3 . . . . . . . . . 6 Intercept . | . . . . . . . . . . . . . . . . . Searches Triggered . | . . . . . . . . . . . . . . . . . Data Miner Redirects 3 | . . . . . . . . . . . . . . . . 3 Construction Impeded 6 | . . . . . 1 1 . . . . . . . . . 4 Haulers Reinforced 1 | . . . . . . 1 . . . . . . . . . . Active Scanning Responses . | . . . . . . . . . . . . . . . . . Cargo Convoy Interrupts 1 | . . . . . . 1 . . . . . . . . . . Stealth | -11 -10 -10 -10 -9 -8 -7 -7 -7 -7 -6 -6 -6 -6 -6 -5 -5 --------- Run | Yrd Mat Min Exi Min Mat Fac Low Low Dat Pro Fac Low Low Zio Pro Fac Distress Signals 9 | . 2 . . . 2 1 . . . 1 2 . . . 1 . Communications Jammed . | . . . . . . . . . . . . . . . . . Distress Signals . | . . . . . . . . . . . . . . . . . Times Spotted 218 | . 13 7 . . 14 38 12 8 . 8 15 3 11 . 13 76 Peak Tracking Total 11 | . 4 2 . . 4 11 4 3 . 4 3 3 4 . 5 6 Tactical Retreats 17 | . 2 3 . . . 2 1 . . . 2 1 1 . . 5 Traps | -11 -10 -10 -10 -9 -8 -7 -7 -7 -7 -6 -6 -6 -6 -6 -5 -5 ------- Run | Yrd Mat Min Exi Min Mat Fac Low Low Dat Pro Fac Low Low Zio Pro Fac Traps Triggered 4 | . . . . . 1 . . . . . . . . . . 3 Indirectly . | . . . . . . . . . . . . . . . . . Trap Hack Attempts . | . . . . . . . . . . . . . . . . . Triggered . | . . . . . . . . . . . . . . . . . Disarmed . | . . . . . . . . . . . . . . . . . Reprogrammed . | . . . . . . . . . . . . . . . . . Reused 1 | . . 1 . . . . . . . . . . . . . . Traps Extracted . | . . . . . . . . . . . . . . . . . Installed 3 | . . 3 . . . . . . . . . . . . . . Triggered . | . . . . . . . . . . . . . . . . . Most Traps Carried 3 | . . 3 . . . . . . . . . . . . . . Machines | -11 -10 -10 -10 -9 -8 -7 -7 -7 -7 -6 -6 -6 -6 -6 -5 -5 ---------- Run | Yrd Mat Min Exi Min Mat Fac Low Low Dat Pro Fac Low Low Zio Pro Fac Machines Disabled 28 | . 2 . . . . 4 . . . . 3 . . . . 19 Max in Single Turn 4 | . 2 . . . . 1 . . . . 2 . . . . 4 Garrison Access 2 | . . . . . 1 . . . . . . . . . . 1 Machines Repaired . | . . . . . . . . . . . . . . . . . Machines Dismantled . | . . . . . . . . . . . . . . . . . Machines Sabotaged . | . . . . . . . . . . . . . . . . . Overloaded Fab Kills . | . . . . . . . . . . . . . . . . . Hacking | -11 -10 -10 -10 -9 -8 -7 -7 -7 -7 -6 -6 -6 -6 -6 -5 -5 --------- Run | Yrd Mat Min Exi Min Mat Fac Low Low Dat Pro Fac Low Low Zio Pro Fac Machines Accessed 31 | . 5 . 1 . 6 3 . . 3 . 4 2 1 . . 6 Terminals 18 | . 5 . . . 5 1 . . . . 4 . . . . 3 Fabricators 1 | . . . . . . . . . . . . . . . . 1 Repair Stations . | . . . . . . . . . . . . . . . . . Recycling Units 1 | . . . . . . 1 . . . . . . . . . . Scanalyzers 1 | . . . . . . . . . . . . . . . . 1 Garrison Access 3 | . . . . . 1 1 . . . . . . . . . 1 Total Hacks 96 | . 16 . 1 . 15 8 . . 26 . 7 8 1 . . 14 Successful 60 | . 5 . 1 . 8 1 . . 26 . 4 8 1 . . 6 Failed 36 | . 11 . . . 7 7 . . . . 3 . . . . 8 Catastrophic 6 | . 1 . . . 1 2 . . . . 1 . . . . 1 Database Lockouts . | . . . . . . . . . . . . . . . . . Manual 40 | . 15 . 1 . 11 . . . . . 7 . . . . 6 Terminals 44 | . 16 . . . 13 1 . . . . 7 . . . . 7 Fabricators 3 | . . . . . . . . . . . . . . . . 3 Repair Stations . | . . . . . . . . . . . . . . . . . Recycling Units 3 | . . . . . . 3 . . . . . . . . . . Scanalyzers 3 | . . . . . . . . . . . . . . . . 3 Garrison Access 7 | . . . . . 2 4 . . . . . . . . . 1 Terminal Hacks 42 | . 2 . 1 . 2 . . . 26 . 1 8 1 . . 1 Record 13 | . . . . . . . . . 6 . . 7 . . . . Part Schematic 9 | . . . . . . . . . 9 . . . . . . . Robot Schematic 8 | . . . . . . . . . 8 . . . . . . . Prototype ID Bank 4 | . . . . . 1 . . . 3 . . . . . . . Open Door 2 | . . . . . . . . . . . . 1 1 . . . Branch Access Points 2 | . 1 . . . . . . . . . 1 . . . . . Alert Level 1 | . 1 . . . . . . . . . . . . . . . Unreport Threat 1 | . . . . . 1 . . . . . . . . . . . Surveillance Status 1 | . . . . . . . . . . . . . . . . 1 Proto ID Catalog 1 | . . . 1 . . . . . . . . . . . . . Fabricator Hacks 1 | . . . . . . . . . . . . . . . . 1 Load Schematic 1 | . . . . . . . . . . . . . . . . 1 Repair Station Hacks . | . . . . . . . . . . . . . . . . . Recycling Unit Hacks 1 | . . . . . . 1 . . . . . . . . . . Retrieve Components 1 | . . . . . . 1 . . . . . . . . . . Scanalyzer 1 | . . . . . . . . . . . . . . . . 1 Retrieve Study 1 | . . . . . . . . . . . . . . . . 1 Garrison Access Hacks 1 | . . . . . 1 . . . . . . . . . . . Seal Access 1 | . . . . . 1 . . . . . . . . . . . Unauthorized Hacks 14 | . 3 . . . 5 . . . . . 3 . . . . 3 Terminals 13 | . 3 . . . 5 . . . . . 3 . . . . 2 Botnet 13 | . 3 . . . 5 . . . . . 3 . . . . 2 Fabricators . | . . . . . . . . . . . . . . . . . Repair Stations . | . . . . . . . . . . . . . . . . . Recycling Units . | . . . . . . . . . . . . . . . . . Scanalyzers . | . . . . . . . . . . . . . . . . . Garrison Access 1 | . . . . . . . . . . . . . . . . 1 Jam 1 | . . . . . . . . . . . . . . . . 1 Data Cores Recovered 2 | . 1 . . . . . . . . . 1 . . . . . Used 1 | . 1 . . . . . . . . . . . . . . . Hacking Detections 20 | . 5 . . . 3 3 . . . . 4 . . . . 5 Full Trace Events 3 | . . . . . . 2 . . . . . . . . . 1 Feedback Events . | . . . . . . . . . . . . . . . . . Feedback Blocked . | . . . . . . . . . . . . . . . . . Robot Schematics Acquired 10 | . . . . . . . . . 8 . . . . 2 . . Robots Built . | . . . . . . . . . . . . . . . . . Authchips . | . . . . . . . . . . . . . . . . . Time . | . . . . . . . . . . . . . . . . . Total Robot Build Rating . | . . . . . . . . . . . . . . . . . Part Schematics Acquired 23 | . . . . . . . . . 9 . . . . 14 . . Parts Built . | . . . . . . . . . . . . . . . . . Authchips . | . . . . . . . . . . . . . . . . . Time . | . . . . . . . . . . . . . . . . . Total Part Build Rating . | . . . . . . . . . . . . . . . . . Part Studies Acquired 1 | . . . . . . . . . . . . . . . . 1 Parts Repaired . | . . . . . . . . . . . . . . . . . Time . | . . . . . . . . . . . . . . . . . Parts Recycled . | . . . . . . . . . . . . . . . . . Recycled Matter . | . . . . . . . . . . . . . . . . . Retrieved Matter . | . . . . . . . . . . . . . . . . . Retrieved Components 10 | . . . . . . 10 . . . . . . . . . . Parts Scanalyzed . | . . . . . . . . . . . . . . . . . Part Schematics Acquired . | . . . . . . . . . . . . . . . . . Parts Damaged . | . . . . . . . . . . . . . . . . . Bothacking | -11 -10 -10 -10 -9 -8 -7 -7 -7 -7 -6 -6 -6 -6 -6 -5 -5 ------------ Run | Yrd Mat Min Exi Min Mat Fac Low Low Dat Pro Fac Low Low Zio Pro Fac Used RIF Installer . | . . . . . . . . . . . . . . . . . Robots Hacked . | . . . . . . . . . . . . . . . . . Non-combat . | . . . . . . . . . . . . . . . . . Combat . | . . . . . . . . . . . . . . . . . Robot Hacks Applied . | . . . . . . . . . . . . . . . . . Relay Couplers Released . | . . . . . . . . . . . . . . . . . Fabnet Peak Effective % . | . . . . . . . . . . . . . . . . . Robots Rewired 4 | . . . . . . . . . . . . . . . 4 . Allies Hacked . | . . . . . . . . . . . . . . . . . Hacks Repelled . | . . . . . . . . . . . . . . . . . Allies | -11 -10 -10 -10 -9 -8 -7 -7 -7 -7 -6 -6 -6 -6 -6 -5 -5 -------- Run | Yrd Mat Min Exi Min Mat Fac Low Low Dat Pro Fac Low Low Zio Pro Fac Total Allies 6 | . . . . 1 . . . . . . . . . . 5 . Largest Group 4 | . . . . 1 1 . . . . . . . . . 4 1 Highest-Rated Group 142 | . . . . 31 31 . . . . . . . . . 142 41 Highest-Rated Ally 41 | . . . . 31 31 . . . . . . . . . 41 41 Total Orders 3 | . . . . . . . . . . . . . . . . 3 RETURN 3 | . . . . . . . . . . . . . . . . 3 Ally Attacks 44 | . . . . . 10 . . 1 . . . . 3 . 25 5 Total Damage 1550 | . . . . . 124 . . 53 . . . . 134 . 1028 211 Kills 10 | . . . . . . . . 1 . . . . 1 . 7 1 Allies Corrupted 1 | . . . . . . . . . . . . . . . . 1 Allies Melted . | . . . . . . . . . . . . . . . . . Turrets Deployed 2 | . . . . . . . . 1 . . . . 1 . . . Intel | -11 -10 -10 -10 -9 -8 -7 -7 -7 -7 -6 -6 -6 -6 -6 -5 -5 ------- Run | Yrd Mat Min Exi Min Mat Fac Low Low Dat Pro Fac Low Low Zio Pro Fac Active Infowar (turns) 4706 | 41 478 161 . . . . . . . . 1562 . . . . 2464 Sensors 2464 | . . . . . . . . . . . . . . . . 2464 Terrain 1562 | . . . . . . . . . . . 1562 . . . . . Seismic 680 | 41 478 161 . . . . . . . . . . . . . . Robot Analysis Total . | . . . . . . . . . . . . . . . . . Derelict Logs Recovered 8 | . . 2 . . . . 2 . . . . . 1 2 1 . Drone Launches 3 | . . . . . . . . . . . . . . . . 3 Drone Recoveries 3 | . . . . . . . . . . . . . . . . 3 Exploration | -11 -10 -10 -10 -9 -8 -7 -7 -7 -7 -6 -6 -6 -6 -6 -5 -5 ------------- Run | Yrd Mat Min Exi Min Mat Fac Low Low Dat Pro Fac Low Low Zio Pro Fac Turns Passed 15298 | 124 478 762 506 92 781 1229 948 663 194 486 1631 700 656 1792 662 3594 Spaces Moved 7483 | 63 281 453 323 58 399 612 379 264 80 192 629 407 363 1088 373 1519 Core 7 | 3 . . . . . . . . . . . . . . . 4 Treads 4738 | 60 113 . . . . 132 379 264 80 192 629 407 363 1088 373 658 Legs . | . . . . . . . . . . . . . . . . . Wheels 2738 | . 168 453 323 58 399 480 . . . . . . . . . 857 Hover . | . . . . . . . . . . . . . . . . . Flight . | . . . . . . . . . . . . . . . . . Fastest Speed 50 | 50 95 140 155 155 110 160 245 245 245 245 165 165 165 162 162 108 Average Speed 177 | 154 132 154 155 155 152 178 245 245 245 245 195 165 165 162 162 176 Slowest Speed 1350 | 160 160 155 155 155 160 245 245 245 245 245 246 165 165 165 162 1350 Overloaded Moves . | . . . . . . . . . . . . . . . . . Propulsion Burnouts . | . . . . . . . . . . . . . . . . . Robots Hopped . | . . . . . . . . . . . . . . . . . Potential Cave-ins 2 | . . . . . . . . . . . . . . . 2 . Cave-ins Triggered . | . . . . . . . . . . . . . . . . . Exploration Rate (%) 46 | 3 42 79 70 11 39 18 45 43 68 49 15 58 63 85 63 39 Regions Visited 16 Branch Regions 11 Pre-discovered Areas 4 | . . . . . . . . . 1 . . 2 . 1 . . Known Exits Taken 11 | . 1 . . . . 1 1 1 1 1 1 1 1 1 1 . Unknown Exits Taken 5 | 1 . 1 1 1 1 . . . . . . . . . . . Scrap Searched 16 | . . . . . . . 2 4 . . . 4 1 2 3 . Spaces Dug 57 | . . . . . . . . . . . 13 . . . . 44 Terrain Destroyed 605 | 4 29 12 . . 12 52 27 96 . 95 18 5 11 . 8 236 Melee 52 | . . . . . . . . . . . 13 . . . . 39 Projectile 137 | . . . . . 12 14 5 7 . 1 5 5 11 . 8 69 AOE 416 | 4 29 12 . . . 38 22 89 . 94 . . . . . 128 Terrain Rammed . | . . . . . . . . . . . . . . . . . Walls Destroyed . | . . . . . . . . . . . . . . . . . Machines Disabled . | . . . . . . . . . . . . . . . . . Actions | -11 -10 -10 -10 -9 -8 -7 -7 -7 -7 -6 -6 -6 -6 -6 -5 -5 --------- Run | Yrd Mat Min Exi Min Mat Fac Low Low Dat Pro Fac Low Low Zio Pro Fac Total 8820 | 78 339 488 328 62 571 718 399 274 79 200 955 432 383 1105 409 2000 Wait 690 | . 27 . . . 145 49 9 . . . 270 2 . . 5 183 Move 7467 | 62 280 452 322 57 398 611 378 263 79 191 628 406 362 1087 372 1519 Hop . | . . . . . . . . . . . . . . . . . Pick Up 82 | 4 4 9 6 2 7 5 4 1 . . 5 9 2 5 2 17 Fast Attach 40 | 7 . . . . . 3 . . . . 3 1 1 . . 25 Attach 49 | . 1 2 . . 3 5 . 1 . . 5 3 . 2 . 27 Detach 9 | . . . . . 1 1 . . . . 1 2 . . . 4 Swap 35 | 1 1 2 . 1 5 2 1 . . . 3 . . 6 5 8 Drop 55 | . 2 5 . 2 7 6 3 1 . . 3 5 1 3 5 12 Fire 257 | 4 24 15 . . 5 36 4 8 . 9 7 4 14 . 9 118 Melee 133 | . . . . . . . . . . . 30 . 3 2 11 87 Ram . | . . . . . . . . . . . . . . . . . Kick . | . . . . . . . . . . . . . . . . . Crush . | . . . . . . . . . . . . . . . . . Escape Stasis . | . . . . . . . . . . . . . . . . . Rewire . | . . . . . . . . . . . . . . . . . Trap 3 | . . 3 . . . . . . . . . . . . . . Miscellaneous . | . . . . . . . . . . . . . . . . . Route ------- -11/Scrapyard -10/Materials (discovered 4 exits: [*Mat] / *Min x2 / [*Sub]) -10/Mines (discovered 2 exits: [*Mat] / *Exi) -10/Exiles -9/Mines -8/Materials -7/Factory (discovered 2 exits: Sto / *Low) -7/Lower Caves -7/Lower Caves -7/Data Miner -6/Proximity Caves -6/Factory (discovered 3 exits: *Fac / *Low x2) -6/Lower Caves -6/Lower Caves -6/Zion -5/Proximity Caves -5/Factory (discovered 2 exits: Fac / *Upp) History --------- Turn | Location | Event 17 | -11/Scrapyard | Discovered new exit (range 16) 125 | -11/Scrapyard | Entered Materials 313 | -10/Materials | Build established: Mutant 402 | -10/Materials | Discovered new exit (range 10) 485 | -10/Materials | Discovered new exit (range 11) 493 | -10/Materials | Identified exit to Mines 591 | -10/Materials | Discovered new exit (range 8) 603 | -10/Materials | Entered Mines 969 | -10/Mines | Assembled infested the area 1016 | -10/Mines | Discovered new exit (range 9) 1071 | -10/Mines | Found a hidden stash of uninstalled traps 1326 | -10/Mines | Learned Materials garrison access intel 1359 | -10/Mines | Deemed a non-threat by the Exiles lab entrance 1359 | -10/Mines | Discovered new exit (range 5) 1365 | -10/Mines | Entered Exiles 1406 | -10/Exiles | Met 8R-AWN 1435 | -10/Exiles | Met EX-HEX 1479 | -10/Exiles | Met EX-BIN 1497 | -10/Exiles | Aligned with FarCom system 1499 | -10/Exiles | Given EX-Vault access code 1544 | -10/Exiles | Opened EX-Vault 1555 | -10/Exiles | Found AWS/Autocannon 1563 | -10/Exiles | Found Firepult 1567 | -10/Exiles | Found Deploy-a-Sentry 1570 | -10/Exiles | Found Deploy-a-Sentry 1574 | -10/Exiles | Found Deploy-a-Sentry 1606 | -10/Exiles | Warned to stay clear of 0b10 Research branches 1663 | -10/Exiles | Met EX-DEC 1849 | -10/Exiles | Discovered new exit (range 14) 1871 | -10/Exiles | Stole three prototypes: Firepult, AWS/Autocannon, Deploy-a-Sentry 1871 | -10/Exiles | Entered Mines 1874 | -9/Mines | Received a Mining Laser from a helpful Derelict 1939 | -9/Mines | Discovered new exit (range 6) 1948 | -9/Mines | Received a Rocket Launcher from a helpful Derelict 1963 | -9/Mines | Entered Materials 1963 | -8/Materials | Accompanied by 1 ally 1963 | -8/Materials | Evolved 4 slots: Propulsion x2, Weapon x2 1964 | -8/Materials | Loaded intel: 1 garrison access location 2351 | -8/Materials | Build established: Scavenger-Skirmisher 2658 | -8/Materials | Discovered new exit (range 15) 2744 | -8/Materials | Entered Factory 2744 | -7/Factory | Evolved 2 slots: Utility x2 2745 | -7/Factory | Identified exit to Storage 2746 | -7/Factory | FarCom data flow suspended 2839 | -7/Factory | Garrison activated, responded to threat 3038 | -7/Factory | Build established: Tank 3143 | -7/Factory | Discovered new exit (range 13) 3488 | -7/Factory | Destroyed 7 combat bots 3600 | -7/Factory | Cargo convoy interrupted 3667 | -7/Factory | Lost 4 parts (3n1w) 3702 | -7/Factory | Destroyed 13 combat bots 3759 | -7/Factory | Identified exit to Lower Caves 3944 | -7/Factory | First assault squad dispatched 3973 | -7/Factory | Entered Lower Caves 4584 | -7/Lower Caves | Encountered a Warlord checkpoint 4613 | -7/Lower Caves | Learned 4 Factory zone layouts 4669 | -7/Lower Caves | Discovered new exit (range 6) 4674 | -7/Lower Caves | Ambushed by wild Derelicts 4750 | -7/Lower Caves | Identified exit to Lower Caves 4857 | -7/Lower Caves | Learned Factory security intel 4921 | -7/Lower Caves | Entered another Lower Caves area 4923 | -7/Lower Caves | Attracted the attention of an 0b10 checkpoint 5453 | -7/Lower Caves | Encountered a Master Thief 5454 | -7/Lower Caves | Encountered a Master Thief 5455 | -7/Lower Caves | Encountered a Master Thief 5455 | -7/Lower Caves | Deploy-a-Sentry stolen by Master Thief 5463 | -7/Lower Caves | DAS Turret deployed 5540 | -7/Lower Caves | Discovered new exit (range 5) 5550 | -7/Lower Caves | Identified exit to Data Miner 5584 | -7/Lower Caves | Entered Data Miner 5584 | -7/Data Miner | Discovered new exit (range 6) 5631 | -7/Data Miner | Met Data Miner 5678 | -7/Data Miner | Learned location of Section 7 (-2) 5678 | -7/Data Miner | Acquired the access code to Warlord's prototype stash 5719 | -7/Data Miner | Received God Mode back door access code from Data Miner 5773 | -7/Data Miner | Identified exit to Proximity Caves 5778 | -7/Data Miner | Entered Proximity Caves 6011 | -6/Proximity Caves | Destroyed 7 combat bots 6235 | -6/Proximity Caves | Discovered new exit (range 9) 6262 | -6/Proximity Caves | Identified exit to Factory 6264 | -6/Proximity Caves | Entered Factory 6264 | -6/Factory | Evolved 2 slots: Utility x2 6805 | -6/Factory | AWS/Autocannon suddenly broke down 6876 | -6/Factory | Discovered new exit (range 13) 6921 | -6/Factory | Identified exit to Factory 7224 | -6/Factory | Identified exit to Lower Caves 7347 | -6/Factory | Build established: Skirmisher 7808 | -6/Factory | Spotted B-75 Beast 7857 | -6/Factory | Lost 3 parts (1n2u) 7895 | -6/Factory | Entered Lower Caves 8211 | -6/Lower Caves | Build established: Gunner 8379 | -6/Lower Caves | Entered an active Warlord outpost 8439 | -6/Lower Caves | Learned location of 1 exit from Research 8439 | -6/Lower Caves | Learned 8 Research zone layouts 8439 | -6/Lower Caves | Learned Factory security intel 8439 | -6/Lower Caves | Learned Research terminal intel 8439 | -6/Lower Caves | Learned Armory garrison access intel 8564 | -6/Lower Caves | Discovered new exit (range 4) 8569 | -6/Lower Caves | Identified exit to Lower Caves 8595 | -6/Lower Caves | Entered another Lower Caves area 8596 | -6/Lower Caves | Encountered a Warlord checkpoint 8975 | -6/Lower Caves | Attracted the attention of an 0b10 checkpoint 9016 | -6/Lower Caves | Learned Factory terminal intel 9069 | -6/Lower Caves | Encountered a Master Thief 9070 | -6/Lower Caves | Deploy-a-Sentry stolen by Master Thief 9071 | -6/Lower Caves | Encountered a Master Thief 9073 | -6/Lower Caves | Encountered a Master Thief 9073 | -6/Lower Caves | Encountered a Master Thief 9073 | -6/Lower Caves | Firepult stolen by Master Thief 9085 | -6/Lower Caves | DAS Turret deployed 9086 | -6/Lower Caves | Proton Cannon stolen by Master Thief 9128 | -6/Lower Caves | Discovered new exit (range 10) 9142 | -6/Lower Caves | Identified exit to Zion 9251 | -6/Lower Caves | Entered Zion 9362 | -6/Zion | Received a hallucinogenic algorithm 9369 | -6/Zion | Discovered new exit (range 12) 9448 | -6/Zion | Given the Hacking Drone Bay 9450 | -6/Zion | Found Prototype Device 9536 | -6/Zion | Learned location of Extension (-4) 9655 | -6/Zion | Found Prototype Special Weapon 9659 | -6/Zion | Found Prototype Special Weapon 9959 | -6/Zion | Learned Factory emergency access door positions 10654 | -6/Zion | Met Imprinter 11041 | -6/Zion | Identified exit to Proximity Caves 11043 | -6/Zion | Entered Proximity Caves 11045 | -5/Proximity Caves | Greeted by an Infiltrator in a former 0b10 base 11109 | -5/Proximity Caves | Former 0b10 base attacked by MAIN.C 11441 | -5/Proximity Caves | Lost 3 allies 11443 | -5/Proximity Caves | 0b10 base defense nominally successful 11611 | -5/Proximity Caves | Learned 4 Factory zone layouts 11673 | -5/Proximity Caves | Build established: Scavenger-Gunner 11680 | -5/Proximity Caves | Discovered exit to Factory (range 14) 11705 | -5/Proximity Caves | Entered Factory 11705 | -5/Factory | Accompanied by 1 ally 11705 | -5/Factory | Evolved 2 slots: Utility x2 11706 | -5/Factory | Identified exit to Factory 11706 | -5/Factory | Identified exit to Upper Caves 11709 | -5/Factory | Loaded intel: 26 terminal locations 12110 | -5/Factory | Lost 4 parts (1p2n1u) 12191 | -5/Factory | Spotted B-75 Beast 12383 | -5/Factory | Build established: Derelict-Gunner 12753 | -5/Factory | Build established: Gunner 13222 | -5/Factory | Garrison activated, responded to threat 13675 | -5/Factory | Incoming investigation squad redirected 13681 | -5/Factory | Lost 9 parts (2n3u4w) 13805 | -5/Factory | First assault squad dispatched 13871 | -5/Factory | Build established: Mutant 14106 | -5/Factory | System corruption reached 10% 14144 | -5/Factory | Lost 6 parts (4u2w) 14265 | -5/Factory | Core integrity fell below 50% 14302 | -5/Factory | Destroyed 7 combat bots 14309 | -5/Factory | Lost 8 parts (2n3u3w) 14530 | -5/Factory | Identified Hacking Drone Bay 14560 | -5/Factory | Lost 3 parts (2u1w) 14626 | -5/Factory | Build established: Scavenger-Gunner 14721 | -5/Factory | Incoming assault squad redirected 14765 | -5/Factory | Found Prototype Launcher 14765 | -5/Factory | Identified Tesla Bomb Launcher 14885 | -5/Factory | Incoming investigation squad redirected 15078 | -5/Factory | Lost 3 parts (2n1u) 15228 | -5/Factory | System corruption reached 30% 15271 | -5/Factory | Core integrity fell below 20% 15289 | -5/Factory | Identified RU-N14's Throwing Claymores (x2) 15299 | -5/Factory | Destroyed by X-77 Beamer with Gatling Laser Last Messages --------------- 15287_ P-70 Sage resets P-70 Sage, system corruption cleaned. 15289_ Dropped Com. Matter Pod. 15289_ Identified RU-N14's Throwing Claymores. 15290_ Extracted 133 matter. 15290_ X-77 Beamer IFF system glitched. 15290_ Slug penetrates Wall. 15290_ P-70 Sage knocked back. 15290_ P-70 Sage destroyed. 15290_ Matter Pump disabled. 15294_ Slug penetrates H-71 Marshal. 15294_ RU-N14's Throwing Claymores expended. 15295_ H-71 Marshal calls for reinforcements. 15295_ ALERT: Hostile activity reported, dispatching reinforcements to area. 15295_ Penetrated by Slug. 15295_ Knocked back. 15297_ Dropped Hcp. Storage Unit. 15297_ Dropped Tesla Rifle. 15298_ Dropped Hvy. Flak Cannon. Map ----- +----------------------------------------------------+ | ?????????????????????????????????????????????????? | | ?????????????????????????????????????????????????? | | ?????????????????????????????????????????????????? | | ?????????????????????????????????????????????????? | | ?????????????????????????????????????????????????? | | ?????????????????????????????????????????????????? | | ?????????????+???????????????????????????????????? | | ?????????????????????????########????????????????? | | ?????????????????????????? ?????????######## | | ???????????????+?????????? " ?????????# ! | | ?????????????????????????# " ?#######?# "" | | ?????????????????????????# " [ ##"""""### "T | | ??????????????????? # # " " " # "" ! | | ??????????????????? + + " " " # | | ??????????????????? # # " " ""# """ | | ??????????????????? # + " """" " " """ | | ???????????????????### # " Y"" ""# """ | | ??????????????????? # # " """" " # | | ??????????????????? + + """""""""######## | | ??????????????????? ########/#### | | ??????????????????? #?????## ###" """""""######## | | ??????????????????? #?????# ### # ####??????? | | ??????????????????? #?????# % #####?????????? | | ??????????????????? #?##?##% ### "#????????????? | | ??????????????????? ###[##;###### "##???????????? | | ???????????????????### !@!;#### #???????????? | | ?????????????? !m] H #???????????? | | ?????????? [ > x #???????????? | | ???????????+## =%* #???????????? | | ?????????????# % #### ! #???????????? | | ?????????????# #####???# ##???????????? | | ?????????????# ########## ##????????????? | | ?????????????# ## #????????????? | | ?????????????# " ## #????????????? | | ?????????????# "" ## ########?????? | | ??????????????? ## # ?????? | | ????????????????""" # # ?????? | | ??????????????????" ?????????????????????????????? | | ??????????????????"??????????????????????????????? | | ?????????????????????????????????????????????????? | | ?????????????????????????????????????????????????? | | ?????????????????????????????????????????????##### | | ?????????????????????????????????????????????# | | ?????????????????????????????????????????????+ | | ?????????????????????????????????????????????# | | ?????????????????????????????????????????????### # | | ?????????????????????????????????????????????????? | | ?????????????????????????????????????????????????? | | ?????????????????????????????????????????????????? | | ???????T?????????????????????????????????????????? | +----------------------------------------------------+ Best States ------------- Heat Dissipation 78 Coolant Potential 80 Energy Generation 21 Energy Capacity 325 Matter Stores 300 Matter Capacity 300 Sight Range 16 Robot Scan Range 15 Terrain Scan Range 16 Terrain Scan Density 210 Power Amplification 20 Armor Coverage 600 Point Defense Rating 80 Evasion (%) 41 Targeting Accuracy 16 Target Analysis 8 Recoil Reduction 6 Offensive Hacking 10 Item Schematics ----------------- Combat Drone Bay | -7/Data Miner | Free Lgt. Regenerative Plating | -7/Data Miner | Free Cld. Cesium-ion Thruster | -7/Data Miner | Free Thermal Defense Suite | -7/Data Miner | Free Antimatter Cannon | -7/Data Miner | Free Gyrokinetic Inverter | -7/Data Miner | Free Imp. Shock Absorption System | -7/Data Miner | Free Wave Gun | -7/Data Miner | Free Lrn. Proton Cannon | -7/Data Miner | Free Enh. Optical Array | -6/Zion | Archive Adv. Plasma Cannon | -6/Zion | Archive Adv. Coolant Injector | -6/Zion | Archive Hvy. Shock Bomb Launcher | -6/Zion | Archive Focal Shield | -6/Zion | Archive Nuclear Pulse Thruster | -6/Zion | Archive Imp. Transmission Jammer | -6/Zion | Archive Imp. Kinecellerator | -6/Zion | Archive Fusion Compressor | -6/Zion | Archive Lyr. Heavy Armor Plating | -6/Zion | Archive Lgt. Antimatter Reactor | -6/Zion | Archive Adv. Terrain Scanner | -6/Zion | Archive Adv. System Shield | -6/Zion | Archive Coil Gun | -6/Zion | Archive Robot Schematics ------------------ G-50 Soldier | -7/Data Miner | Free O-24 Administrator | -7/Data Miner | Free R-10 Processor | -7/Data Miner | Free G-47 Trooper | -7/Data Miner | Free S-27 Virus | -7/Data Miner | Free B-48 Gladiator | -7/Data Miner | Free Y-54 Guardian | -7/Data Miner | Free A-15 Conveyor | -7/Data Miner | Free R-06 Scavenger | -6/Zion | Archive G-73 Enforcer | -6/Zion | Archive Fabricated ------------ Nothing Repaired ---------- Nothing Studied --------- Med. Treads | -5/Factory | Hacked Alien Tech Used ----------------- None Achievements -------------- None Challenges ------------ None Game ------ Seed PiercelightSpliceShredder Manual? 0 Play Time 01:18:25 Cumulative 190.4 hours Start 2026.09.02 @ 16:02:46 End 2026.09.02 @ 17:23:02 Sessions 1 Manual Loads 0 Difficulty Rogue Special Mode None Game No. 378 Rogue 378 Adventurer 0 Explorer 0 Win Type - Total 2 Types 2/0/0/0/0/0/0/0/0/0 Lore% 59 Gallery% 60 Achievement% 47 Wizard Run 0 Options --------- Layout 2 ASCII 0 Keyboard 1 Movement Arrows Keybinds 0 Fullscreen 1 Font 24/Smallcaps Map View 50x44 Zoom Use 0% Tactical HUD 1 Map Filters NONE Filters NONE Steam 1 RUN: 26d7bb93-0daa-40a2-b4b8-e3b3c8d863ca